[Event "Bangabandhu Premier Div League 2022"]
[Site "Dhaka"]
[Date "2022.11.30"]
[Round "1.1"]
[White "Rahman, Ziaur"]
[Black "Majumder, Ahmed Hossain"]
[Result "1-0"]
[ECO "E11"]
[WhiteElo "2464"]
[BlackElo "1975"]
[Annotator "TA"]
[PlyCount "61"]
[EventDate "2022.11.30"]
[EventType "team-tourn"]
[EventCountry "BAN"]
[SourceTitle "playchess.com"]
[Source "ChessBase"]
[SourceQuality "1"]
[TimeControl "40/5400+30:1800+30"]

{[%evp 19,61,22,18,18,44,39,39,36,54,43,44,49,51,51,43,43,45,38,52,38,38,33,45,39,38,28,102,95,108,105,116,115,289,285,441,435,411,362,431,439,581,598,595,595]} 1. d4 {[%emt 0:00:39]} Nf6 {[%emt 0:00:48]} 2. c4 {[%emt 0:00:31]} e6 {[%emt 0:01:01]} 3. g3 {[%emt 0:00:09]} Bb4+ {[%emt 0:03:03]} 4. Bd2 {[%emt 0:01:02]} Bxd2+ {[%emt 0:03:43]} 5. Nxd2 {[%emt 0:01:56]} d5 {[%emt 0:02:06]} 6. Ngf3 {[%emt 0:01:17]} O-O {[%emt 0:00:51]} 7. Bg2 {[%emt 0:00:27]} Nbd7 {[%emt 0:04:04]} 8. O-O {[%emt 0:00:25]} c5 {[%emt 0:02:14]} 9. cxd5 {[%emt 0:01:27]} exd5 {[%emt 0:03:18]} 10. dxc5 {[%emt 0:06:01]} Nxc5 {[%emt 0:05:26]} 11. Nb3 {[%emt 0:00:50] E11: Bogo-Indian.} Qb6 {[%emt 0:13:27]} 12. Nxc5 {[%emt 0:01:10]} Qxc5 {[%emt 0:00:24]} 13. Rc1 {[%emt 0:04:27] [#] White is slightly better.} Qe7 $146 {[%emt 0:05:34]} ({Predecessor:} 13... Qa5 14. Qb3 Bf5 15. Nd4 Be4 16. Bh3 Rfd8 17. Qxb7 Rdb8 18. Rc8+ {1-0 (18) Oliva Castaneda,K (2500)-Guetas Sanchez,H (2159) Montcada 2016}) 14. Nd4 {[%emt 0:01:49]} a6 {[%emt 0:06:46]} 15. Qb3 {[%emt 0:04:17]} Be6 {[%emt 0:13:15]} 16. Rc3 {[%emt 0:08:43]} Rac8 {[%emt 0:02:29]} 17. Rfc1 {[%emt 0:04:05]} Rxc3 {[%emt 0:01:15]} 18. Qxc3 {[%emt 0:01:28]} g6 {[%emt 0:07:23]} 19. Qe3 {[%emt 0:02:53]} Qd6 {[%emt 0:01:56]} 20. h3 {[%emt 0:01:53]} Re8 {[%emt 0:02:39][%cal Oe6h3]} 21. Qb3 {[%emt 0:02:33]} Rc8 {[%emt 0:03:36]} 22. Rd1 {[%emt 0:00:54]} Qc7 {[%emt 0:02:18]} (22... b5 $11 {keeps the balance.}) 23. e4 $1 $16 {[%emt 0:04:18][%cal Be2e4,Be4d5,Bd5d6][%mdl 32] White is more active.} Rd8 {[%emt 0:06:06]} 24. Nxe6 {[%emt 0:01:11]} fxe6 {[%emt 0:00:47]} 25. exd5 {[%emt 0:00:14]} Qd7 {[%emt 0:00:56] A mistake that costs the game.} (25... exd5 $16 {is a better defense.} 26. Bxd5+ Nxd5) 26. d6 $18 {[%emt 0:00:41]} b5 {[%emt 0:01:02] [#]} (26... Kf7 $142 27. Qb6 (27. Bxb7 Rb8 $18) (27. Qxb7 Qxb7 28. Bxb7 a5 $18) 27... g5) 27. Bc6 $1 {[%emt 0:07:14][%mdl 512]} Qf7 {[%emt 0:00:59]} (27... Qxc6 28. Qxe6+ Kg7 29. Qe7+ Kh6 30. Qxd8) 28. Qe3 {[%emt 0:01:39]} Nd7 {[%emt 0:03:31]} 29. Rd4 {[%emt 0:01:15][%cal Bd1d4,Bd4f4,Bf4e4][%mdl 32] White is clearly winning.} Kg7 {[%emt 0:01:53]} 30. Rf4 {[%emt 0:03:10] Inhibits e5.} Qe8 {[%emt 0:01:23]} 31. Re4 {[%emt 0:00:56] Weighted Error Value: White=0.06 (flawless) /Black=0.38} 1-0

[Event "Bangabandhu Premier Div League 2022"]
[Site "Dhaka"]
[Date "2022.11.30"]
[Round "1.2"]
[White "Mohammed Abdul, Malek"]
[Black "Chanda, Sandipan"]
[Result "0-1"]
[ECO "A80"]
[WhiteElo "2152"]
[BlackElo "2474"]
[Annotator "TA"]
[PlyCount "64"]
[EventDate "2022.11.30"]
[EventType "team-tourn"]
[EventCountry "BAN"]
[SourceTitle "playchess.com"]
[Source "ChessBase"]
[SourceQuality "1"]
[TimeControl "40/5400+30:1800+30"]

{[%evp 9,64,17,28,-13,-14,-14,-14,-280,-273,-273,-273,-275,-270,-268,-270,-266,-270,-269,-266,-318,-233,-261,-246,-243,-219,-235,-214,-230,-144,-150,-141,-295,-295,-299,-301,-301,-290,-333,-310,-433,-431,-486,-487,-508,-412,-422,-411,-465,-458,-702,-693,-681,-687,-680,-658,-655,-641]} 1. d4 {[%emt 0:00:04]} f5 {[%emt 0:00:09]} 2. Bf4 {[%emt 0:01:43]} Nf6 {[%emt 0:00:10]} 3. e3 {[%emt 0:00:13]} d6 {[%emt 0:00:09]} 4. Bd3 {[%emt 0:01:50]} g6 {[%emt 0:00:14]} 5. h4 {[%emt 0:00:24]} h6 {[%emt 0:00:22]} 6. Qf3 {[%emt 0:01:18] A80: Dutch Defence: Unusual White second moves.} Nc6 {[%emt 0:02:49] ...e5 is the strong threat.} 7. Qg3 {[%emt 0:06:47] Prevents e5.} Rg8 {[%emt 0:01:20] [#]} 8. c3 $146 {[%emt 0:02:19][%mdl 8192]} (8. Bc4 $11 {and White stays safe.} e6 9. Nc3) ({Predecessor:} 8. Bc4 e6 9. Nc3 Qe7 10. O-O-O Bd7 11. a3 O-O-O 12. Nf3 Be8 13. Rhe1 Bg7 14. Qh2 {1-0 (33) Sopur,L (2412)-Nowicki,B (2339) Poronin 2020}) 8... e5 $1 $19 {[%emt 0:01:24]} 9. Ne2 {[%emt 0:05:30]} exf4 {[%emt 0:04:34]} 10. Nxf4 {[%emt 0:00:03]} g5 {[%emt 0:04:35]} 11. hxg5 {[%emt 0:01:13]} hxg5 {[%emt 0:00:26]} 12. Nh5 {[%emt 0:03:15]} Nxh5 {[%emt 0:06:16]} 13. Rxh5 {[%emt 0:00:17]} Qf6 {[%emt 0:00:16]} 14. f4 {[%emt 0:01:38]} Be6 {[%emt 0:05:37] [#] And now ...gxf4 would win.} 15. Rxg5 {[%emt 0:03:54]} Rxg5 16. fxg5 {[%emt 0:00:03]} Qg6 {[%emt 0:02:41]} 17. Nd2 {[%emt 0:03:56]} O-O-O {[%emt 0:01:35]} 18. Nf3 {[%emt 0:01:28]} f4 {[%emt 0:07:35]} 19. Bxg6 {[%emt 0:01:04]} fxg3 {[%emt 0:00:03] Black is more active.} 20. e4 $2 {[%emt 0:00:39] White does not recover from this.} (20. Kd2 $17) 20... Ne7 {[%emt 0:00:51]} 21. Bh7 {[%emt 0:01:31]} Bg7 {[%emt 0:00:24] [#] Strongly threatening ...Rh8.} 22. Ke2 {[%emt 0:01:47]} Rh8 {[%emt 0:02:37]} 23. g6 {[%emt 0:00:17]} Bg4 {[%emt 0:01:41]} 24. Rf1 {[%emt 0:04:19]} Bh5 {[%emt 0:00:25]} 25. Kd3 {[%emt 0:08:00]} Nxg6 {[%emt 0:04:03]} 26. Ng5 {[%emt 0:09:35]} Bh6 {[%emt 0:05:44]} 27. Bxg6 {[%emt 0:03:24]} Bxg6 {[%emt 0:00:03]} 28. Rf6 {[%emt 0:01:14]} Rg8 {[%emt 0:01:55] Black is clearly winning.} (28... Bxg5 $2 {perishes.} 29. Rxg6 Bf4 30. Rg4 $19) 29. Nf3 {[%emt 0:07:00]} (29. Nf7 $142 Bf8 30. c4) 29... d5 {[%emt 0:02:15][%cal Bd6d5,Bd5e4][%mdl 32]} 30. Ke2 {[%emt 0:00:54]} dxe4 {[%emt 0:00:44]} 31. Ne5 {[%emt 0:03:05]} Bh5+ {[%emt 0:00:15]} 32. Ke1 {[%emt 0:00:10]} Be3 {[%emt 0:00:14] Weighted Error Value: White=0.50/Black=0.17 (very precise)} 0-1

[Event "Bangabandhu Premier Div League 2022"]
[Site "Dhaka"]
[Date "2022.11.30"]
[Round "1.3"]
[White "Harsha Bharathakoti"]
[Black "Muthaiah AL"]
[Result "1-0"]
[ECO "A13"]
[WhiteElo "2582"]
[BlackElo "2454"]
[Annotator "TA"]
[PlyCount "67"]
[EventDate "2022.11.30"]
[EventType "team-tourn"]
[EventCountry "BAN"]
[SourceTitle "playchess.com"]
[Source "ChessBase"]
[SourceQuality "1"]
[TimeControl "40/5400+30:1800+30"]

{[%evp 9,67,16,19,12,24,0,12,9,12,17,22,14,16,12,15,18,11,19,22,6,0,0,29,20,38,24,112,113,121,122,129,140,139,129,249,203,203,201,345,367,387,373,377,205,405,190,915,768,736,651,1514,1507,2006,1829,2614,2493,29976,29977,29964,5991]} 1. Nf3 {[%emt 0:00:22]} Nf6 {[%emt 0:01:06]} 2. c4 {[%emt 0:02:21]} e6 {[%emt 0:01:37]} 3. g3 {[%emt 0:03:30]} d5 {[%emt 0:03:16]} 4. Bg2 {[%emt 0:00:14]} dxc4 {[%emt 0:02:22]} 5. Qa4+ {[%emt 0:00:45]} Bd7 {[%emt 0:01:05]} 6. Qxc4 {[%emt 0:00:07] A13: English Opening: 1...e6.} c5 {[%emt 0:01:03]} 7. Nc3 {[%emt 0:03:52]} Bc6 {[%emt 0:08:58]} 8. O-O {[%emt 0:00:54] The position is equal.} Nbd7 {[%emt 0:01:01][%cal Ob7b5]} 9. e4 {[%emt 0:06:13]} Be7 {[%emt 0:10:59][%cal Ob7b5]} 10. Qe2 {[%emt 0:05:52] Against b5} e5 {[%emt 0:08:57] Prevents d4.} 11. Nh4 {[%emt 0:17:21] [#]} O-O $146 ({Predecessor:} 11... g6 12. d3 O-O 13. Be3 Re8 14. Nf3 b6 15. h3 Qc7 16. Nd2 Rad8 17. f4 Nf8 {1-0 (79) Sarana,A (2668)-Erenberg,A (2516) Chess.com INT 2022}) 12. Nf5 {[%emt 0:07:13]} Re8 {[%emt 0:05:34]} 13. d3 Bf8 14. Be3 {[%emt 0:09:30]} h6 {[%emt 0:17:16]} 15. Rad1 {[%emt 0:08:51]} Kh7 {[%emt 0:02:51]} 16. f4 {[%emt 0:10:15]} (16. Bc1 {simplifies} b5 17. b3 Kg8 18. Bb2) 16... g6 {[%emt 0:13:08]} 17. fxe5 {[%emt 0:01:54]} (17. Nh4 {simplifies} Kg8 18. h3 exf4 19. gxf4 Rc8 20. e5) 17... Rxe5 {[%emt 0:08:01]} (17... Nxe5 $11 {remains equal.} 18. d4 cxd4 19. Rxd4 (19. Bxd4 gxf5 20. Bxe5 Qb6+ 21. Bd4 Bc5 $11) 19... Qa5 20. Nxh6 Bxh6 21. Bxh6 (21. Rxf6 Qa6 $14) 21... Kxh6 22. Rxf6 Rad8 23. Qd2+ Kg7) 18. d4 $16 {[%emt 0:01:53] Black is on the road to losing.} cxd4 {[%emt 0:00:58]} 19. Nxd4 {[%emt 0:06:20]} Bg7 {[%emt 0:09:10][%cal Rc6e4]} 20. Nxc6 {[%emt 0:06:21]} bxc6 {[%emt 0:00:02]} 21. Qc4 {[%emt 0:02:37][%csl LRc6,LRf7][%cal Of1f6] White is much more active.} Kg8 {[%emt 0:02:56]} (21... Qe7 $16 {keeps fighting.} 22. Qxc6 Rb8) 22. Qxc6 {[%emt 0:03:48][%cal Of1f6] [#] And now Rxf6! would win.} Rc8 {[%emt 0:00:19]} 23. Qd6 {[%emt 0:01:13] Black must now prevent Bh3.} Qa5 {[%emt 0:00:48]} (23... Qe7 $142 24. Bh3 Qxd6 25. Rxd6 Rc7) 24. Bh3 $18 {[%emt 0:00:31] This pair of bishops is nice.} Rd8 {[%emt 0:00:31]} 25. b4 {[%emt 0:00:30]} Qa3 {[%emt 0:00:25]} 26. Rd3 {[%emt 0:00:31]} (26. Qc7 $142 Ree8 27. Bd4 (27. Bxa7 Rc8 $15) (27. Qc4 Ne5 $14)) 26... Qb2 $2 {[%emt 0:00:36] [#]} (26... Ne8 {is a better defense.} 27. Nd5 Nxd6 28. Rxa3 Nc4 29. Rxa7 Nxe3 30. Nxe3 Rxe4) 27. Bd4 {[%emt 0:00:30] Dancing on a razor blade.} ({Not} 27. Bxa7 Ree8 $14) (27. Qc7 $142 Ree8 28. Nd5 (28. Bxa7 Rc8 $14) 28... Nxd5 29. Rxd5) 27... Rh5 $2 {[%emt 0:00:29]} (27... Ree8) 28. Rf2 {[%emt 0:00:31]} Qc1+ {[%emt 0:00:25]} 29. Rd1 {[%emt 0:00:24]} Nxe4 {[%emt 0:00:34]} 30. Qe7 {[%emt 0:00:21]} ({Less strong is} 30. Rxc1 Nxd6 31. Bxg7 (31. Bxa7 $2 {is the wrong capture.} Rxh3 32. Rd2 Ne5 $19) 31... Kxg7 32. Bxd7 Rxd7 $14) 30... Bxd4 {[%emt 0:00:31]} 31. Qxd8+ {[%emt 0:00:29]} Kg7 {[%emt 0:00:18]} 32. Rxc1 {[%emt 0:00:07]} Nxf2 {[%emt 0:00:34]} 33. Qxd7 {[%emt 0:00:31]} Nxh3+ {[%emt 0:00:31]} 34. Kg2 {[%emt 0:00:05] Weighted Error Value: White=0.35/Black=0.61} 1-0

[Event "Bangabandhu Premier Div League 2022"]
[Site "Dhaka"]
[Date "2022.11.30"]
[Round "1.4"]
[White "Parveen, Tanima"]
[Black "Mehdi Hasan Parag"]
[Result "0-1"]
[ECO "C54"]
[WhiteElo "1967"]
[BlackElo "2185"]
[Annotator "TA"]
[PlyCount "42"]
[EventDate "2022.11.30"]
[EventType "team-tourn"]
[EventCountry "BAN"]
[SourceTitle "playchess.com"]
[Source "ChessBase"]
[SourceQuality "1"]
[TimeControl "40/5400+30:1800+30"]

{[%evp 10,42,16,14,15,18,21,17,6,0,16,-7,-20,-25,-17,-23,-16,-71,-25,-26,-14,-484,-475,-502,-495,-474,-461,-866,-849,-738,-532,-2433,-2414,-2414,-2339]} 1. e4 {[%emt 0:00:02]} e5 {[%emt 0:00:16]} 2. Nf3 {[%emt 0:00:07]} Nc6 {[%emt 0:00:06]} 3. Bc4 {[%emt 0:00:18]} Nf6 {[%emt 0:00:04]} 4. d3 {[%emt 0:00:16]} Bc5 {[%emt 0:00:08]} 5. O-O {[%emt 0:00:22]} d6 {[%emt 0:00:11]} 6. c3 {[%emt 0:01:07]} a5 {[%emt 0:00:07] C54: Giuoco Piano: 4 c3 Nf6, main lines with 5 d4 and 5 d3.} 7. h3 {[%emt 0:02:06]} Bb6 {[%emt 0:00:17]} 8. Re1 {[%emt 0:00:59]} h6 {[%emt 0:00:10] The position is equal.} 9. d4 {[%emt 0:06:23]} O-O $1 {[%emt 0:01:35][%cal Of6e4]} 10. Bb5 {[%emt 0:02:56]} Bd7 {[%emt 0:02:16] [#]} 11. d5 $146 {[%emt 0:17:29]} ({Predecessor:} 11. Na3 Re8 12. d5 Ne7 13. Bxd7 Nxd7 14. Nc4 f5 15. exf5 Nxf5 16. Nfd2 Ba7 17. Ne4 {½-½ (65) Warakomski,T (2515)-Sadzikowski,D (2522) Ustron 2020}) 11... Ne7 {[%emt 0:01:33]} 12. Bd3 {[%emt 0:03:17]} Ng6 {[%emt 0:01:01]} 13. Bc2 {[%emt 0:01:54]} (13. Be3 $11 {keeps the balance.}) 13... Qe7 {[%emt 0:03:26] Black is more active.} (13... Qc8 $17 {[%cal Od7h3] White must now prevent ...Bxh3!} 14. Nh2 c6) 14. Na3 {[%emt 0:03:09]} Nh5 {[%emt 0:01:24]} (14... Bc5 {simplifies} 15. Nc4 b5 16. Ne3 Qd8) 15. Nxe5 $2 {[%emt 0:08:53][%mdl 8192] White does not recover from this.} Qxe5 $19 {[%emt 0:00:35] Black is clearly winning.} ({Stronger than} 15... Bxf2+ 16. Kxf2 Qh4+ 17. Kg1 Nxe5 18. Rf1 $17) 16. Nc4 {[%emt 0:00:18] [#]} Bxf2+ $1 {[%emt 0:00:52][%mdl 512]} 17. Kxf2 {[%emt 0:01:47]} Qg3+ {[%emt 0:00:45]} 18. Kf1 {[%emt 0:01:31] [#]} (18. Kg1 $142 Nh4 19. Re2 Nf3+ 20. Kf1) 18... Nh4 $1 {[%emt 0:05:31][%csl Gh4][%cal Rg3g2]} 19. Re2 {[%emt 0:08:40]} (19. Ke2 Nxg2) 19... Qh2 {[%emt 0:00:51] ( -> ...Qh1+)} 20. Rf2 {[%emt 0:03:52]} Ng3+ {[%emt 0:00:46]} 21. Ke1 {[%emt 0:00:41]} Qg1+ {[%emt 0:00:10] Weighted Error Value: White=0.97/Black=0.30} 0-1

[Event "Bangabandhu Premier Div League 2022"]
[Site "Dhaka"]
[Date "2022.11.30"]
[Round "1.5"]
[White "Haque, Rezaul"]
[Black "abzid, Rahman"]
[Result "1/2-1/2"]
[ECO "A08"]
[WhiteElo "1949"]
[BlackElo "2043"]
[Annotator "TA"]
[PlyCount "134"]
[EventDate "2022.11.30"]
[EventType "team-tourn"]
[EventCountry "BAN"]
[SourceTitle "playchess.com"]
[Source "ChessBase"]
[SourceQuality "1"]
[TimeControl "40/5400+30:1800+30"]

{[%evp 11,134,-2,7,-10,0,-7,-7,-59,-23,-56,-49,-53,-61,-65,-54,-93,-57,-82,-62,-76,-70,-70,-39,-56,-64,-56,-49,-45,-32,-50,-55,-60,-40,-72,-41,-160,-85,-84,-18,-20,0,0,0,0,0,-23,-23,-58,-62,-43,-39,-47,41,34,71,91,99,104,191,186,215,219,234,226,348,329,315,229,229,211,304,262,237,249,266,272,280,270,287,276,302,264,265,260,268,149,153,156,195,187,217,210,217,211,190,176,217,217,217,217,236,224,211,211,293,291,466,22,22,23,22,23,23,8,20,8,24,24,24,24,24,24,24,24,23]} 1. Nf3 {[%emt 0:01:24]} d5 {[%emt 0:01:06]} 2. g3 {[%emt 0:01:08]} Nf6 {[%emt 0:00:36]} 3. Bg2 {[%emt 0:00:17]} Bf5 {[%emt 0:00:20]} 4. d3 {[%emt 0:01:13]} e6 {[%emt 0:00:55]} 5. Nbd2 {[%emt 0:01:31]} c5 {[%emt 0:01:08]} 6. O-O {[%emt 0:01:22]} Nc6 {[%emt 0:00:15]} 7. Re1 {[%emt 0:01:20] A08: King's Indian Attack.} Be7 {[%emt 0:00:26]} 8. c4 {[%emt 0:01:01]} d4 {[%emt 0:05:31] [#]} 9. h3 $146 {[%emt 0:06:35]} (9. Nh4 $11) ({Predecessor:} 9. Ng5 h5 10. Nge4 h4 11. Nxf6+ Bxf6 12. Ne4 Be7 13. e3 g5 14. exd4 Nxd4 15. Be3 {½-½ (36) Zybura,A-Derraugh,G Toronto 2009}) 9... h6 {[%emt 0:03:07]} 10. Nf1 {[%emt 0:00:42]} O-O {[%emt 0:00:40]} 11. g4 {[%emt 0:03:17]} Bh7 {[%emt 0:00:19]} 12. Bf4 {[%emt 0:00:10] Prevents Qc7.} Nd7 {[%emt 0:00:57]} 13. N3d2 {[%emt 0:01:55]} e5 {[%emt 0:00:45]} 14. Bg3 {[%emt 0:06:32]} f5 {[%emt 0:01:23]} 15. gxf5 $1 {[%emt 0:02:14]} Bxf5 {[%emt 0:00:35]} 16. Ne4 {[%emt 0:00:42]} Nf6 {[%emt 0:01:18]} 17. Nxf6+ {[%emt 0:03:22]} Bxf6 {[%emt 0:00:34]} 18. Nd2 {[%emt 0:00:49]} Qd7 {[%emt 0:01:11]} 19. Kh2 {[%emt 0:01:26]} Rae8 {[%emt 0:07:58]} 20. Ne4 {[%emt 0:01:08]} Be7 {[%emt 0:03:51]} 21. Qd2 {[%emt 0:08:03]} b6 {[%emt 0:01:16]} 22. Rf1 {[%emt 0:02:40]} Be6 {[%emt 0:04:55]} 23. f4 {[%emt 0:05:04]} (23. Qd1 $15) 23... exf4 {[%emt 0:03:04]} ({Better is} 23... Rf5 $1 24. Bf3 (24. fxe5 Rh5 $17) 24... exf4 25. Bxf4 Ne5 26. Bxe5 Rxe5) 24. Rxf4 $17 {[%emt 0:00:16]} Rxf4 {[%emt 0:00:38]} ({Black should try} 24... Bf5 $17) 25. Qxf4 $11 {[%emt 0:00:59]} Rf8 {[%emt 0:00:34]} (25... Nb4 $5 {[%cal Rb4c2]}) 26. Qc7 {[%emt 0:00:31]} Nb4 {[%emt 0:08:31][%cal Bc6b4,Bb4c2,Bc2e3][%mdl 32]} 27. Qxd7 {[%emt 0:04:39]} Bxd7 {[%emt 0:00:37]} 28. a3 {[%emt 0:01:32]} Nc2 {[%emt 0:00:35]} 29. Rf1 {[%emt 0:01:23]} Rxf1 {[%emt 0:05:49]} 30. Bxf1 {[%emt 0:00:02]} Ne3 {[%emt 0:02:31]} 31. Bg2 {[%emt 0:00:10]} Ba4 {[%emt 0:15:09]} (31... Nxg2 $15 32. Kxg2 Bd8) 32. Bb8 $14 {[%emt 0:01:46]} Bd8 {[%emt 0:16:57]} 33. Bxa7 {[%emt 0:00:52]} Bc7+ {[%emt 0:00:39]} 34. Kg1 {[%emt 0:00:46]} Bb3 {[%emt 0:03:48] [#]} (34... Nc2 $16) 35. Nd2 $1 $18 {[%emt 0:01:32]} Bd1 {[%emt 0:00:34]} 36. Bf3 {[%emt 0:04:16]} Nc2 {[%emt 0:01:15]} 37. Ne4 {[%emt 0:03:04]} Kf8 {[%emt 0:02:18]} (37... Ne1 $142 38. Bg4 h5) 38. Nf2 {[%emt 0:00:52]} Ne3 {[%emt 0:00:15]} 39. b4 {[%emt 0:03:07]} cxb4 {[%emt 0:00:58]} 40. axb4 {[%emt 0:00:17] Threatens to win with c5.} ({Don't blunder} 40. Nxd1 $2 bxa3 41. c5 a2 42. Nxe3 dxe3 43. Bxb6 a1=Q+ $19) 40... Ba4 {[%emt 0:00:41]} (40... Bb3 {was worth a try.} 41. b5 Nxc4) 41. c5 {[%emt 0:34:42]} bxc5 {[%emt 0:31:56]} 42. Bxc5+ {[%emt 0:00:20]} Ke8 {[%emt 0:00:08]} 43. Bxd4 {[%emt 0:01:24]} Nf5 {[%emt 0:00:26]} 44. Bc5 {[%emt 0:00:46]} Nh4 {[%emt 0:01:21]} 45. Be4 {[%emt 0:01:45]} Bg3 {[%emt 0:00:13]} 46. Nh1 {[%emt 0:02:32]} Bc7 {[%emt 0:01:08]} 47. Kf2 {[%emt 0:01:44]} Bd7 {[%emt 0:00:31]} 48. Bg2 {[%emt 0:03:08]} (48. Ng3 $18) 48... Nxg2 $16 {[%emt 0:00:54]} 49. Kxg2 {[%emt 0:00:14][%mdl 4096] Endgame KBB-KBN} g6 {[%emt 0:03:22]} 50. Nf2 {[%emt 0:00:57]} Kf7 {[%emt 0:00:20]} 51. e4 {[%emt 0:01:08]} h5 {[%emt 0:00:25]} 52. d4 {[%emt 0:00:58]} g5 {[%emt 0:00:21]} 53. d5 {[%emt 0:01:06]} g4 {[%emt 0:00:57]} 54. hxg4 {[%emt 0:00:23]} hxg4 {[%emt 0:00:02]} 55. Bd4 {[%emt 0:08:10]} Kg6 {[%emt 0:01:17]} 56. Nd3 {[%emt 0:01:50]} Bb5 {[%emt 0:00:31] [#]} 57. Nc5 {[%emt 0:00:21]} Be2 {[%emt 0:00:16]} 58. Ne6 {[%emt 0:03:37]} Bd6 {[%emt 0:00:34]} (58... Bb8 59. Bc5 Kf7) 59. e5 $2 {[%emt 0:03:30]} ({Only move:} 59. Bc5 $18 Be5 60. d6) 59... Bf3+ $1 $11 {[%emt 0:00:37]} 60. Kg3 {[%emt 0:00:02]} Bxb4 {[%emt 0:00:00][%cal Og6f5]} 61. d6 {[%emt 0:00:00]} Bc6 {[%emt 0:00:00]} 62. Nf8+ {[%emt 0:00:00]} Kf7 {[%emt 0:00:00]} (62... Kf5 {is interesting.} 63. d7 Be1+ 64. Kh2 Ba5) 63. Nh7 {[%emt 0:00:00]} (63. d7 {is more complex.} Ba5 64. Bc5 Bxd7 65. Nxd7 Ke6 66. Nf8+) 63... Ke6 {[%emt 0:00:00]} 64. Kxg4 {[%emt 0:00:00] White has an edge.} Bxd6 {[%emt 0:00:00][%mdl 64]} 65. exd6 {[%emt 0:00:00] aiming for Bc5.} Kxd6 {[%emt 0:00:00]} 66. Kf4 {[%emt 0:00:00]} Bg2 {[%emt 0:00:00]} 67. Nf8 {[%emt 0:05:24]} Kd5 {Black escapes into a draw.   Weighted Error Value: White=0.29 (precise) /Black=0.29 (precise)} 1/2-1/2

[Event "Bangabandhu Premier Div League 2022"]
[Site "Dhaka"]
[Date "2022.11.30"]
[Round "1.6"]
[White "Aradhya, Garg"]
[Black "Rahman, Siddiqur"]
[Result "1-0"]
[ECO "E37"]
[WhiteElo "2289"]
[BlackElo "1970"]
[Annotator "TA"]
[PlyCount "62"]
[EventDate "2022.11.30"]
[EventType "team-tourn"]
[EventCountry "BAN"]
[SourceTitle "playchess.com"]
[Source "ChessBase"]
[SourceQuality "1"]
[TimeControl "40/5400+30:1800+30"]

{[%evp 19,62,59,53,39,55,43,61,60,57,17,138,137,169,169,184,200,449,490,470,474,29991,672,668,-1340,649,647,29999,380,370,389,380,136,358,238,565,2,676,672,1702,782,1035,1035,1035,1016,29984]} 1. d4 {[%emt 0:00:02]} d5 {[%emt 0:07:13]} 2. c4 {[%emt 0:00:02]} c6 {[%emt 0:00:33]} 3. Nf3 {[%emt 0:00:05]} Nf6 {[%emt 0:01:42]} 4. Nc3 {[%emt 0:01:26]} e6 {[%emt 0:03:28]} 5. e3 {[%emt 0:00:08]} Nbd7 {[%emt 0:14:18]} 6. Qc2 {[%emt 0:00:09]} Bb4 {[%emt 0:01:04]} 7. a3 {[%emt 0:12:32]} Bxc3+ {[%emt 0:08:08]} 8. Qxc3 {[%emt 0:00:07]} Ne4 {[%emt 0:01:36]} 9. Qc2 {[%emt 0:00:02]} O-O {[%emt 0:01:16][%cal Bh8f8,Bf8f6,Bf6h6][%mdl 32]} 10. Bd3 {[%emt 0:01:39]} f5 {[%emt 0:00:43]} 11. O-O {[%emt 0:00:31] E37: Nimzo-Indian: Classical: 4...d5 5 a3 Bxc3+ 6 Qxc3 Ne4.} Rf6 {[%emt 0:04:25]} 12. b4 {[%emt 0:05:06] [#]} a6 $146 {[%emt 0:17:54]} ({Predecessor:} 12... Rh6 13. b5 Qe8 14. Rb1 Qh5 15. h3 g5 16. Ne5 Nxe5 17. dxe5 g4 18. Bxe4 dxe4 19. Qe2 Bd7 20. Rb2 Be8 21. Kh2 cxb5 22. cxb5 g3+ 23. Kxg3 Rg6+ 24. Kh2 Qxe2 25. Rxe2 Bxb5 {0-1 (25) Nodorp,D-Lau,U (2280) Germany 1992}) 13. a4 {[%emt 0:05:15][%cal Ba3a4,Ba4b5][%mdl 32] White is slightly better.} Rh6 {[%emt 0:04:07]} 14. Ba3 {[%emt 0:03:39]} Ndf6 {[%emt 0:15:38]} (14... g5 $1 $11) 15. b5 $16 {[%emt 0:04:23]} axb5 {[%emt 0:00:49]} 16. axb5 {[%emt 0:00:05][%cal Oa3e7] aiming for Be7!} ({Resist} 16. cxb5 Bd7 $16) 16... Bd7 {[%emt 0:00:49]} 17. cxd5 {[%emt 0:09:08]} cxd5 {[%emt 0:05:47] [#]} (17... Nxd5 18. bxc6 Bxc6 19. Bxe4 fxe4) 18. Be7 $1 $18 {[%emt 0:00:09][%mdl 512]} Qe8 {[%emt 0:00:13] Hoping for ...Rc8.} (18... Qc8 19. Qxc8+) 19. Rxa8 {[%emt 0:00:13]} Qd8 (19... Qxa8 $18 20. Qc7 Be8) 20. Rc8 (20. Rxd8+ $142 Kf7 21. Bxf6 Bc6 22. bxc6 Kxf6 23. Rf8+ Kg6 24. Ne5+ Kg5 25. f4+ Kh4 26. g3+ Nxg3 27. hxg3+ Kxg3 28. Qg2+ Kh4 29. Qh2#) 20... Qxc8 {[%emt 0:00:32]} 21. Qc7 {[%emt 0:00:52][%mdl 8192]} Qa8 $4 {[%emt 0:04:50][%mdl 8192] [#]} (21... Qxc7 $19 22. Ne5 Ng4) 22. Bxf6 {[%emt 0:01:55]} Be8 {[%emt 0:01:16]} 23. Ne5 $2 Rxf6 {[%emt 0:02:09]} 24. b6 {[%emt 0:06:56]} Rf8 {[%emt 0:01:42]} 25. Rd1 $2 {[%emt 0:01:31]} (25. Qe7 $18 {has better winning chances.}) 25... Nf6 $2 {[%emt 0:02:05]} (25... Qa2 $16 {might work better.}) 26. f3 {[%emt 0:07:49]} Qa3 $2 {[%emt 0:00:36]} (26... f4 27. exf4 Qa4) 27. Rc1 $2 {[%emt 0:01:31]} (27. Qxb7 $18 Bb5 28. Qa7 Qxa7 29. bxa7) 27... Qa4 $2 {[%emt 0:00:34][%mdl 8192]} (27... Nd7 $11) 28. Qe7 {[%emt 0:02:13] White is clearly winning.} Bd7 {[%emt 0:00:27]} 29. h3 {[%emt 0:02:27] Against f4} (29. Rc7 $142) 29... Re8 {[%emt 0:00:34]} 30. Qf7+ {[%emt 0:00:30]} Kh8 {[%emt 0:00:03]} 31. Nxd7 {[%emt 0:00:42]} Qa3 {[%emt 0:00:00] Weighted Error Value: White=1.29/Black=1.57} 1-0